[Event "*** Titled Tuesday Blitz"]
[Site "Chess.com"]
[Date "2018.05.01"]
[Round "1"]
[White "penguingm1"]
[Black "Zhani-Z"]
[Result "1-0"]
[WhiteElo "2749"]
[BlackElo "2387"]
[TimeControl "180+2"]
[EndTime "13:12:30 PDT"]
[Termination "penguingm1 won on time"]

1. d4 {[%clk 0:03:01.8]} 1... Nf6 {[%clk 0:03:00.2]} 2. c4 {[%clk 0:02:58.3]}
2... e6 {[%clk 0:03:00.5]} 3. Nc3 {[%clk 0:02:58.8]} 3... Bb4 {[%clk 0:03:00.6]}
4. Qc2 {[%clk 0:03:00.3]} 4... O-O {[%clk 0:02:57.9]} 5. Nf3 {[%clk 0:03:00.7]}
5... d5 {[%clk 0:02:53.1]} 6. cxd5 {[%clk 0:03:01.7]} 6... exd5 {[%clk
0:02:47.4]} 7. Bg5 {[%clk 0:03:03]} 7... h6 {[%clk 0:02:42.5]} 8. Bh4 {[%clk
0:03:03.3]} 8... c5 {[%clk 0:02:40.2]} 9. dxc5 {[%clk 0:03:02.9]} 9... g5 {[%clk
0:02:33.1]} 10. Bg3 {[%clk 0:02:58]} 10... Ne4 {[%clk 0:02:33.8]} 11. e3 {[%clk
0:02:43.1]} 11... Qa5 {[%clk 0:02:33.3]} 12. Rc1 {[%clk 0:01:39.4]} 12... Qxa2
{[%clk 0:02:31.8]} 13. Bd3 {[%clk 0:01:12.7]} 13... Bxc3+ {[%clk 0:02:03.2]} 14.
bxc3 {[%clk 0:01:13.1]} 14... Qxc2 {[%clk 0:02:04.4]} 15. Bxc2 {[%clk
0:01:11.6]} 15... Nc6 {[%clk 0:02:03.6]} 16. Bxe4 {[%clk 0:01:10.7]} 16... dxe4
{[%clk 0:02:03.4]} 17. Nd4 {[%clk 0:01:12.6]} 17... Be6 {[%clk 0:02:00.2]} 18.
h4 {[%clk 0:01:09]} 18... Kg7 {[%clk 0:01:54.7]} 19. Bd6 {[%clk 0:01:01.9]}
19... Rfd8 {[%clk 0:01:53.9]} 20. hxg5 {[%clk 0:00:53.9]} 20... hxg5 {[%clk
0:01:54.5]} 21. Nxe6+ {[%clk 0:00:55.5]} 21... fxe6 {[%clk 0:01:55.1]} 22. Ke2
{[%clk 0:00:57.2]} 22... Rh8 {[%clk 0:00:59.8]} 23. Rxh8 {[%clk 0:00:56.3]}
23... Kxh8 {[%clk 0:01:00.6]} 24. Rb1 {[%clk 0:00:57.9]} 24... b6 {[%clk
0:01:01.9]} 25. cxb6 {[%clk 0:00:56.8]} 25... axb6 {[%clk 0:01:02.9]} 26. Rxb6
{[%clk 0:00:58.7]} 26... Ra2+ {[%clk 0:01:03.6]} 27. Ke1 {[%clk 0:00:59.5]}
27... Na5 {[%clk 0:01:04.7]} 28. Be5+ {[%clk 0:00:55.6]} 28... Kh7 {[%clk
0:01:04.2]} 29. g4 {[%clk 0:00:46.2]} 29... Nc4 {[%clk 0:01:00.3]} 30. Rxe6
{[%clk 0:00:45.1]} 30... Nb2 {[%clk 0:00:42.4]} 31. Kf1 {[%clk 0:00:43.6]} 31...
Nd3 {[%clk 0:00:42.1]} 32. Bg3 {[%clk 0:00:43.7]} 32... Ra1+ {[%clk 0:00:40.9]}
33. Kg2 {[%clk 0:00:40.2]} 33... Ra4 {[%clk 0:00:32.2]} 34. Be5 {[%clk
0:00:33.4]} 34... Ra2 {[%clk 0:00:24]} 35. Bg3 {[%clk 0:00:34.1]} 35... Ra4
{[%clk 0:00:25.1]} 36. Rd6 {[%clk 0:00:35]} 36... Ne1+ {[%clk 0:00:20.3]} 37.
Kf1 {[%clk 0:00:34.8]} 37... Ra1 {[%clk 0:00:21.1]} 38. Ke2 {[%clk 0:00:20.3]}
38... Nf3 {[%clk 0:00:21.2]} 39. Rd1 {[%clk 0:00:21.5]} 39... Ra2+ {[%clk
0:00:22.4]} 40. Kf1 {[%clk 0:00:22.1]} 40... Rc2 {[%clk 0:00:23.6]} 41. Rd7+
{[%clk 0:00:21.5]} 41... Kg6 {[%clk 0:00:24.4]} 42. Rd6+ {[%clk 0:00:22.8]}
42... Kf7 {[%clk 0:00:25.3]} 43. Rd7+ {[%clk 0:00:15.8]} 43... Ke6 {[%clk
0:00:24.3]} 44. Rd6+ {[%clk 0:00:15.3]} 44... Ke7 {[%clk 0:00:25.4]} 45. Rd1
{[%clk 0:00:16.1]} 45... Rxc3 {[%clk 0:00:26.3]} 46. Kg2 {[%clk 0:00:17.4]}
46... Rc2 {[%clk 0:00:23.2]} 47. Bd6+ {[%clk 0:00:16.8]} 47... Ke6 {[%clk
0:00:23.7]} 48. Bb4 {[%clk 0:00:14.5]} 48... Rb2 {[%clk 0:00:21.4]} 49. Ba3
{[%clk 0:00:14.2]} 49... Ra2 {[%clk 0:00:22.2]} 50. Bf8 {[%clk 0:00:13.4]} 50...
Ra8 {[%clk 0:00:20.3]} 51. Bg7 {[%clk 0:00:10.7]} 51... Rg8 {[%clk 0:00:19.7]}
52. Bc3 {[%clk 0:00:09.6]} 52... Rc8 {[%clk 0:00:19.2]} 53. Bd4 {[%clk
0:00:10.8]} 53... Rc7 {[%clk 0:00:18.9]} 54. Rh1 {[%clk 0:00:07.4]} 54... Rc2
{[%clk 0:00:19.3]} 55. Rd1 {[%clk 0:00:06.5]} 55... Rc7 {[%clk 0:00:18.2]} 56.
Rh1 {[%clk 0:00:06.7]} 56... Rc2 {[%clk 0:00:19]} 57. Rd1 {[%clk 0:00:06.6]}
57... Ra2 {[%clk 0:00:19.9]} 58. Rh1 {[%clk 0:00:06.6]} 58... Kd5 {[%clk
0:00:18.8]} 59. Rd1 {[%clk 0:00:05.9]} 59... Kc4 {[%clk 0:00:19.8]} 60. Bf6
{[%clk 0:00:06.5]} 60... Ra6 {[%clk 0:00:18.6]} 61. Bg7 {[%clk 0:00:06.6]} 61...
Rg6 {[%clk 0:00:17.9]} 62. Bf8 {[%clk 0:00:07.9]} 62... Rg8 {[%clk 0:00:18.3]}
63. Bd6 {[%clk 0:00:09.3]} 63... Rd8 {[%clk 0:00:18.6]} 64. Rc1+ {[%clk
0:00:10.5]} 64... Kd3 {[%clk 0:00:19.4]} 65. Bg3 {[%clk 0:00:11.3]} 65... Ra8
{[%clk 0:00:19]} 66. Rd1+ {[%clk 0:00:08.3]} 66... Ke2 {[%clk 0:00:18.9]} 67.
Rb1 {[%clk 0:00:10.2]} 67... Ne1+ {[%clk 0:00:18.6]} 68. Kg1 {[%clk 0:00:05.9]}
68... Rh8 {[%clk 0:00:16.3]} 69. Rb2+ {[%clk 0:00:05.4]} 69... Kd3 {[%clk
0:00:16.7]} 70. Rb1 {[%clk 0:00:06.7]} 70... Nf3+ {[%clk 0:00:17.2]} 71. Kg2
{[%clk 0:00:08.2]} 71... Rc8 {[%clk 0:00:14.5]} 72. Rb3+ {[%clk 0:00:09.2]}
72... Ke2 {[%clk 0:00:13.7]} 73. Rb1 {[%clk 0:00:10.8]} 73... Kd3 {[%clk
0:00:13.9]} 74. Rd1+ {[%clk 0:00:09.5]} 74... Ke2 {[%clk 0:00:14.1]} 75. Ra1
{[%clk 0:00:11]} 75... Ne1+ {[%clk 0:00:15.1]} 76. Kg1 {[%clk 0:00:11.4]} 76...
Kf3 {[%clk 0:00:11]} 77. Kf1 {[%clk 0:00:10.3]} 77... Nd3 {[%clk 0:00:11.1]} 78.
Kg1 {[%clk 0:00:11.4]} 78... Rc2 {[%clk 0:00:08.3]} 79. Rf1 {[%clk 0:00:08.8]}
79... Kxg4 {[%clk 0:00:08.8]} 80. Kg2 {[%clk 0:00:09.7]} 80... Re2 {[%clk
0:00:08.4]} 81. Ra1 {[%clk 0:00:08.8]} 1-0

[Event "*** Titled Tuesday Blitz"]
[Site "Chess.com"]
[Date "2018.05.01"]
[Round "2"]
[White "Angulo07"]
[Black "PrinceMurad09"]
[Result "1-0"]
[WhiteElo "2271"]
[BlackElo "2391"]
[TimeControl "180+2"]
[EndTime "13:16:10 PDT"]
[Termination "Angulo07 won by resignation"]

1. d4 {[%clk 0:03:01.9]} 1... Nf6 {[%clk 0:03:00.7]} 2. Bg5 {[%clk 0:03:02.6]}
2... Ne4 {[%clk 0:03:01.5]} 3. Bf4 {[%clk 0:03:03]} 3... d5 {[%clk 0:02:57.8]}
4. f3 {[%clk 0:03:03.1]} 4... Nf6 {[%clk 0:02:58.9]} 5. Nd2 {[%clk 0:02:59.7]}
5... Bf5 {[%clk 0:02:58.8]} 6. e3 {[%clk 0:02:54.5]} 6... Nbd7 {[%clk
0:02:59.4]} 7. Bd3 {[%clk 0:02:55.5]} 7... Bxd3 {[%clk 0:02:59.4]} 8. cxd3
{[%clk 0:02:55.8]} 8... c6 {[%clk 0:03:00.8]} 9. Ne2 {[%clk 0:02:52.9]} 9... g6
{[%clk 0:03:01.1]} 10. Qa4 {[%clk 0:02:51.5]} 10... Bg7 {[%clk 0:03:01.9]} 11.
Qb4 {[%clk 0:02:47.4]} 11... Qb6 {[%clk 0:02:57.8]} 12. Qxb6 {[%clk 0:02:48.9]}
12... axb6 {[%clk 0:02:57.9]} 13. Kf2 {[%clk 0:02:44.4]} 13... O-O {[%clk
0:02:58.7]} 14. g4 {[%clk 0:02:43]} 14... h6 {[%clk 0:02:59.2]} 15. h4 {[%clk
0:02:41.9]} 15... Ne8 {[%clk 0:03:00.5]} 16. a4 {[%clk 0:02:39.3]} 16... Nd6
{[%clk 0:02:58.7]} 17. h5 {[%clk 0:02:38]} 17... e5 {[%clk 0:02:57.7]} 18. dxe5
{[%clk 0:02:36.5]} 18... Nxe5 {[%clk 0:02:57.2]} 19. Bxe5 {[%clk 0:02:35.5]}
19... Bxe5 {[%clk 0:02:59.1]} 20. d4 {[%clk 0:02:31.3]} 20... Bg7 {[%clk
0:02:59.1]} 21. b4 {[%clk 0:02:24.7]} 21... b5 {[%clk 0:02:57.7]} 22. axb5
{[%clk 0:02:22.8]} 22... Nxb5 {[%clk 0:02:58.3]} 23. Ra5 {[%clk 0:02:13.6]}
23... b6 {[%clk 0:02:58.5]} 24. Rxa8 {[%clk 0:02:11.8]} 24... Rxa8 {[%clk
0:03:00.4]} 25. Rc1 {[%clk 0:02:09]} 25... Rc8 {[%clk 0:03:01.7]} 26. Nf4 {[%clk
0:02:09]} 26... g5 {[%clk 0:03:02.1]} 27. Nxd5 {[%clk 0:01:57.7]} 27... Nxd4
{[%clk 0:02:50.1]} 28. Ne7+ {[%clk 0:01:55.3]} 1-0

[Event "*** Titled Tuesday Blitz"]
[Site "Chess.com"]
[Date "2018.05.01"]
[Round "2"]
[White "LastHeroJr"]
[Black "windking123"]
[Result "1-0"]
[WhiteElo "2448"]
[BlackElo "2301"]
[TimeControl "180+2"]
[EndTime "13:16:33 PDT"]
[Termination "LastHeroJr won by checkmate"]

1. e4 {[%clk 0:03:01.9]} 1... c5 {[%clk 0:02:59.2]} 2. Nf3 {[%clk 0:03:03]} 2...
e6 {[%clk 0:03:00.5]} 3. d4 {[%clk 0:03:04]} 3... cxd4 {[%clk 0:03:02.4]} 4.
Nxd4 {[%clk 0:03:05.8]} 4... Nc6 {[%clk 0:03:04.1]} 5. Nc3 {[%clk 0:03:06.2]}
5... Qc7 {[%clk 0:03:04.8]} 6. Be3 {[%clk 0:03:07.1]} 6... Nf6 {[%clk
0:03:05.3]} 7. Qd2 {[%clk 0:03:06.7]} 7... Bb4 {[%clk 0:03:04.3]} 8. f3 {[%clk
0:03:06.9]} 8... d5 {[%clk 0:03:02.7]} 9. a3 {[%clk 0:03:06.1]} 9... Bxc3 {[%clk
0:03:03]} 10. Qxc3 {[%clk 0:03:06.9]} 10... dxe4 {[%clk 0:03:04.5]} 11. Nb5
{[%clk 0:03:01.7]} 11... Qb8 {[%clk 0:03:00]} 12. Bc5 {[%clk 0:02:46.7]} 12...
b6 {[%clk 0:02:29.8]} 13. Bd6 {[%clk 0:02:39.9]} 13... Qb7 {[%clk 0:02:24.3]}
14. O-O-O {[%clk 0:02:26.7]} 14... Bd7 {[%clk 0:02:17]} 15. Nc7+ {[%clk
0:02:26.1]} 15... Kd8 {[%clk 0:02:17.8]} 16. Ba6 {[%clk 0:02:23.9]} 16... Qxc7
{[%clk 0:02:19.3]} 17. Bxc7+ {[%clk 0:02:24.4]} 17... Kxc7 {[%clk 0:02:21.2]}
18. Qd2 {[%clk 0:02:06.8]} 18... exf3 {[%clk 0:02:16]} 19. Qd6+ {[%clk
0:02:04.7]} 19... Kd8 {[%clk 0:02:15.3]} 20. Qxc6 {[%clk 0:02:05.3]} 20... Ke7
{[%clk 0:02:10.9]} 21. Qd6+ {[%clk 0:02:04]} 21... Ke8 {[%clk 0:02:12.1]} 22.
gxf3 {[%clk 0:02:00.1]} 22... Rd8 {[%clk 0:02:13.4]} 23. Bb5 {[%clk 0:01:51.2]}
23... Bxb5 {[%clk 0:02:13.5]} 24. Qxd8# {[%clk 0:01:51.5]} 1-0

[Event "*** Titled Tuesday Blitz"]
[Site "Chess.com"]
[Date "2018.05.01"]
[Round "2"]
[White "AndrewMcStone"]
[Black "Vusatiuk_Vladimir"]
[Result "1-0"]
[WhiteElo "2085"]
[BlackElo "2166"]
[TimeControl "180+2"]
[EndTime "13:16:35 PDT"]
[Termination "AndrewMcStone won by resignation"]

1. d4 {[%clk 0:03:01.9]} 1... d5 {[%clk 0:02:59.3]} 2. c4 {[%clk 0:03:02.7]}
2... dxc4 {[%clk 0:03:00.1]} 3. e4 {[%clk 0:03:02.4]} 3... e5 {[%clk 0:03:01.2]}
4. Nf3 {[%clk 0:02:58.3]} 4... exd4 {[%clk 0:03:02.3]} 5. Bxc4 {[%clk
0:02:59.2]} 5... Nc6 {[%clk 0:03:03.5]} 6. O-O {[%clk 0:02:52]} 6... Be6 {[%clk
0:02:59.4]} 7. Bb5 {[%clk 0:02:52.2]} 7... Bc5 {[%clk 0:02:56.3]} 8. Qc2 {[%clk
0:02:17.7]} 8... Qe7 {[%clk 0:02:50.7]} 9. Bxc6+ {[%clk 0:02:07]} 9... bxc6
{[%clk 0:02:42.9]} 10. b4 {[%clk 0:02:08.5]} 10... Nf6 {[%clk 0:02:34.2]} 11.
bxc5 {[%clk 0:02:01.4]} 11... O-O {[%clk 0:02:34.5]} 12. Bg5 {[%clk 0:02:01.3]}
12... Rfd8 {[%clk 0:02:33.7]} 13. e5 {[%clk 0:01:59.3]} 13... d3 {[%clk
0:02:29.9]} 14. Qd2 {[%clk 0:01:42.3]} 14... Ne4 {[%clk 0:02:26.8]} 15. Bxe7
{[%clk 0:01:42.2]} 15... Nxd2 {[%clk 0:02:27.7]} 16. Nbxd2 {[%clk 0:01:39.7]}
16... Rd7 {[%clk 0:02:15.1]} 17. Bh4 {[%clk 0:01:38]} 17... Rb8 {[%clk
0:02:15.6]} 18. Rfb1 {[%clk 0:01:35.5]} 18... Rbd8 {[%clk 0:02:13.3]} 19. Bxd8
{[%clk 0:01:29]} 1-0

[Event "*** Titled Tuesday Blitz"]
[Site "Chess.com"]
[Date "2018.05.01"]
[Round "2"]
[White "GrigorGrigorov"]
[Black "Orest_Vovk"]
[Result "1-0"]
[WhiteElo "2652"]
[BlackElo "2467"]
[TimeControl "180+2"]
[EndTime "13:16:48 PDT"]
[Termination "GrigorGrigorov won by resignation"]

1. d4 {[%clk 0:03:01.9]} 1... h6 {[%clk 0:03:00.4]} 2. e4 {[%clk 0:03:02.1]}
2... g5 {[%clk 0:03:01.3]} 3. Bd3 {[%clk 0:02:58.3]} 3... Bg7 {[%clk 0:03:02.3]}
4. c3 {[%clk 0:02:57.4]} 4... d5 {[%clk 0:03:03.2]} 5. e5 {[%clk 0:02:57.4]}
5... c5 {[%clk 0:03:04.2]} 6. h4 {[%clk 0:02:55.9]} 6... g4 {[%clk 0:03:04.6]}
7. h5 {[%clk 0:02:51.8]} 7... Nc6 {[%clk 0:03:04.4]} 8. Ne2 {[%clk 0:02:50.3]}
8... Qb6 {[%clk 0:03:04.1]} 9. O-O {[%clk 0:02:34.3]} 9... Bd7 {[%clk 0:02:58]}
10. Nf4 {[%clk 0:02:31.6]} 10... cxd4 {[%clk 0:02:47.4]} 11. Nxd5 {[%clk
0:02:31.8]} 11... Qa5 {[%clk 0:02:47.9]} 12. c4 {[%clk 0:02:17.6]} 12... Bxe5
{[%clk 0:02:46]} 13. b4 {[%clk 0:02:10.9]} 13... Qd8 {[%clk 0:02:35.3]} 14. b5
{[%clk 0:02:10.6]} 14... Na5 {[%clk 0:02:29.5]} 15. Re1 {[%clk 0:02:11.5]} 15...
Bb8 {[%clk 0:02:17.7]} 16. Ba3 {[%clk 0:02:07.4]} 16... Be6 {[%clk 0:02:15.3]}
17. Rxe6 {[%clk 0:01:52.9]} 17... fxe6 {[%clk 0:02:15.6]} 18. Qxg4 {[%clk
0:01:44.3]} 18... Nf6 {[%clk 0:01:56]} 19. Nxf6+ {[%clk 0:01:42.1]} 19... exf6
{[%clk 0:01:56.6]} 20. Qxe6+ {[%clk 0:01:42.7]} 1-0

[Event "*** Titled Tuesday Blitz"]
[Site "Chess.com"]
[Date "2018.05.01"]
[Round "2"]
[White "Indianlad"]
[Black "grzechu96"]
[Result "1-0"]
[WhiteElo "2638"]
[BlackElo "2465"]
[TimeControl "180+2"]
[EndTime "13:17:31 PDT"]
[Termination "Indianlad won by resignation"]

1. e4 {[%clk 0:03:01.9]} 1... c5 {[%clk 0:03:00.1]} 2. Nf3 {[%clk 0:03:03.5]}
2... d6 {[%clk 0:03:01.2]} 3. d4 {[%clk 0:03:05.4]} 3... cxd4 {[%clk 0:03:03.1]}
4. Nxd4 {[%clk 0:03:06.8]} 4... Nf6 {[%clk 0:03:04.3]} 5. Nc3 {[%clk 0:03:08.3]}
5... a6 {[%clk 0:03:05.8]} 6. a3 {[%clk 0:03:09.7]} 6... e6 {[%clk 0:03:02.4]}
7. f4 {[%clk 0:03:09.8]} 7... b5 {[%clk 0:03:01]} 8. Qf3 {[%clk 0:03:11.2]} 8...
Bb7 {[%clk 0:03:01.7]} 9. g4 {[%clk 0:03:04.4]} 9... Qc7 {[%clk 0:02:40]} 10. g5
{[%clk 0:03:03.1]} 10... Nfd7 {[%clk 0:02:41.3]} 11. Be3 {[%clk 0:02:53.7]}
11... Nc6 {[%clk 0:02:42.3]} 12. O-O-O {[%clk 0:02:53.9]} 12... Na5 {[%clk
0:02:37.4]} 13. Kb1 {[%clk 0:02:40.8]} 13... Rc8 {[%clk 0:02:30.5]} 14. Qh3
{[%clk 0:01:56.6]} 14... Be7 {[%clk 0:02:07.6]} 15. g6 {[%clk 0:01:56]} 15...
Nf8 {[%clk 0:02:00.6]} 16. gxf7+ {[%clk 0:01:56.5]} 16... Kxf7 {[%clk
0:02:01.7]} 17. f5 {[%clk 0:01:54.6]} 17... e5 {[%clk 0:02:01.8]} 18. Ne6 {[%clk
0:01:47.7]} 18... Nxe6 {[%clk 0:02:00.5]} 19. fxe6+ {[%clk 0:01:49.6]} 19... Ke8
{[%clk 0:01:59]} 20. Rg1 {[%clk 0:01:39.6]} 20... Bf6 {[%clk 0:01:37.8]} 21.
Qh5+ {[%clk 0:01:40.1]} 21... g6 {[%clk 0:01:38.4]} 22. Rxg6 {[%clk 0:01:37.1]}
22... hxg6 {[%clk 0:01:39.3]} 23. Qxg6+ {[%clk 0:01:37.8]} 23... Ke7 {[%clk
0:01:40.7]} 24. Qf7+ {[%clk 0:01:38.2]} 24... Kd8 {[%clk 0:01:40.3]} 25. Qxf6+
{[%clk 0:01:39]} 1-0

[Event "*** Titled Tuesday Blitz"]
[Site "Chess.com"]
[Date "2018.05.01"]
[Round "2"]
[White "TrimitziosP7"]
[Black "igorkovalenko"]
[Result "0-1"]
[WhiteElo "2536"]
[BlackElo "2717"]
[TimeControl "180+2"]
[EndTime "13:17:37 PDT"]
[Termination "igorkovalenko won by resignation"]

1. Nf3 {[%clk 0:03:01.9]} 1... c5 {[%clk 0:03:00.3]} 2. c4 {[%clk 0:02:58.2]}
2... Nc6 {[%clk 0:03:01.1]} 3. b3 {[%clk 0:02:57.4]} 3... e5 {[%clk 0:03:00.1]}
4. Nc3 {[%clk 0:02:57.7]} 4... f5 {[%clk 0:03:00.4]} 5. d3 {[%clk 0:02:58.6]}
5... Nf6 {[%clk 0:03:00.7]} 6. g3 {[%clk 0:02:59.6]} 6... Be7 {[%clk 0:03:01.8]}
7. Bg2 {[%clk 0:03:00.7]} 7... O-O {[%clk 0:03:03.3]} 8. O-O {[%clk 0:03:02.3]}
8... d6 {[%clk 0:03:04.8]} 9. Ne1 {[%clk 0:03:03.8]} 9... Be6 {[%clk 0:03:05.6]}
10. Nc2 {[%clk 0:03:05.3]} 10... Qd7 {[%clk 0:03:05.1]} 11. Ne3 {[%clk
0:03:06.7]} 11... f4 {[%clk 0:03:05.3]} 12. Ned5 {[%clk 0:03:07.4]} 12... Bh3
{[%clk 0:03:06.3]} 13. f3 {[%clk 0:03:06.5]} 13... g5 {[%clk 0:03:03.6]} 14.
Nxf6+ {[%clk 0:03:06]} 14... Rxf6 {[%clk 0:03:04]} 15. Ne4 {[%clk 0:03:07]}
15... Rg6 {[%clk 0:03:04]} 16. g4 {[%clk 0:03:07.6]} 16... Bxg2 {[%clk
0:03:03.8]} 17. Kxg2 {[%clk 0:03:09.5]} 17... h5 {[%clk 0:03:03.8]} 18. h3
{[%clk 0:03:11]} 18... Kg7 {[%clk 0:03:03.7]} 19. Bb2 {[%clk 0:03:11.9]} 19...
Rh8 {[%clk 0:03:04.2]} 20. Rh1 {[%clk 0:03:12.7]} 20... Rgh6 {[%clk 0:03:05.6]}
21. Qd2 {[%clk 0:03:14.2]} 21... Kg6 {[%clk 0:03:04.1]} 22. Rag1 {[%clk
0:03:15.7]} 22... R8h7 {[%clk 0:03:05]} 23. Nf2 {[%clk 0:03:16]} 23... Kf7
{[%clk 0:03:03.1]} 24. Qc2 {[%clk 0:03:17.3]} 24... Bd8 {[%clk 0:03:01.2]} 25.
Rh2 {[%clk 0:03:18.1]} 25... Ne7 {[%clk 0:03:02.1]} 26. Rgh1 {[%clk 0:03:18.3]}
26... Ng6 {[%clk 0:03:03.3]} 27. Kg1 {[%clk 0:03:18]} 27... Ba5 {[%clk
0:03:03.1]} 28. Bc1 {[%clk 0:03:18.7]} 28... Be1 {[%clk 0:03:03.7]} 29. Ne4
{[%clk 0:03:19.4]} 29... Qe7 {[%clk 0:03:02.5]} 30. Bd2 {[%clk 0:03:17.1]} 30...
Bg3 {[%clk 0:03:03.4]} 31. Rg2 {[%clk 0:03:14.3]} 31... hxg4 {[%clk 0:03:04.6]}
32. Rxg3 {[%clk 0:03:13.6]} 32... fxg3 {[%clk 0:03:00.9]} 33. Nxg5+ {[%clk
0:03:14.8]} 33... Kg7 {[%clk 0:02:57.7]} 34. Nxh7 {[%clk 0:03:16.1]} 34... Rxh7
{[%clk 0:02:58.9]} 35. fxg4 {[%clk 0:03:15.8]} 35... Nf4 {[%clk 0:02:54.3]} 36.
Bxf4 {[%clk 0:03:12.3]} 36... exf4 {[%clk 0:02:56.2]} 37. Qd2 {[%clk 0:03:13.7]}
37... Qe5 {[%clk 0:02:56.8]} 38. Kg2 {[%clk 0:03:13.3]} 38... Kg6 {[%clk
0:02:56]} 39. Rf1 {[%clk 0:03:11.8]} 39... Kg5 {[%clk 0:02:56.4]} 40. e4 {[%clk
0:03:09.5]} 40... Rxh3 {[%clk 0:02:49.6]} 41. Kf3 {[%clk 0:02:46.6]} 41... Rh2
{[%clk 0:02:45.1]} 42. Qc1 {[%clk 0:02:44.9]} 42... Rxa2 {[%clk 0:02:40.6]} 43.
b4 {[%clk 0:02:26.9]} 43... b6 {[%clk 0:02:40.7]} 44. b5 {[%clk 0:02:27.2]}
44... Rh2 {[%clk 0:02:32.5]} 45. d4 {[%clk 0:02:19.1]} 45... cxd4 {[%clk
0:02:32.5]} 46. Qd1 {[%clk 0:02:16.2]} 46... Qe6 {[%clk 0:02:30.2]} 0-1

[Event "*** Titled Tuesday Blitz"]
[Site "Chess.com"]
[Date "2018.05.01"]
[Round "2"]
[White "GulamaliRises"]
[Black "eljanov"]
[Result "1-0"]
[WhiteElo "2491"]
[BlackElo "2654"]
[TimeControl "180+2"]
[EndTime "13:17:48 PDT"]
[Termination "GulamaliRises won by resignation"]

1. e4 {[%clk 0:03:01.9]} 1... e5 {[%clk 0:02:59.2]} 2. Nc3 {[%clk 0:03:03.1]}
2... Nf6 {[%clk 0:02:59]} 3. f4 {[%clk 0:03:04]} 3... d5 {[%clk 0:02:57.4]} 4.
fxe5 {[%clk 0:03:03.6]} 4... Nxe4 {[%clk 0:02:58.2]} 5. Qf3 {[%clk 0:03:04.6]}
5... Nxc3 {[%clk 0:02:57.9]} 6. bxc3 {[%clk 0:03:05.7]} 6... Be7 {[%clk
0:02:55.6]} 7. d4 {[%clk 0:03:05.4]} 7... O-O {[%clk 0:02:52.8]} 8. Bd3 {[%clk
0:03:01.4]} 8... c5 {[%clk 0:02:51.8]} 9. Ne2 {[%clk 0:02:59.8]} 9... c4 {[%clk
0:02:41.2]} 10. Bf5 {[%clk 0:03:00.3]} 10... Bxf5 {[%clk 0:02:42.2]} 11. Qxf5
{[%clk 0:03:02.2]} 11... Qc8 {[%clk 0:02:32.9]} 12. Qf3 {[%clk 0:02:50.7]} 12...
Qd7 {[%clk 0:02:19.8]} 13. Nf4 {[%clk 0:02:45.1]} 13... Rd8 {[%clk 0:02:12]} 14.
O-O {[%clk 0:02:45.6]} 14... Nc6 {[%clk 0:02:05.3]} 15. Nh5 {[%clk 0:02:46.5]}
15... Qe6 {[%clk 0:02:03.2]} 16. Nf4 {[%clk 0:02:46]} 16... Qd7 {[%clk
0:02:03.8]} 17. Rb1 {[%clk 0:02:46.3]} 17... b6 {[%clk 0:02:00.9]} 18. a4 {[%clk
0:02:43]} 18... Bf8 {[%clk 0:01:50.6]} 19. Rb5 {[%clk 0:02:36.9]} 19... Ne7
{[%clk 0:01:37.9]} 20. Ba3 {[%clk 0:02:37.8]} 20... a6 {[%clk 0:01:30.4]} 21.
Rxb6 {[%clk 0:02:38.6]} 21... Qf5 {[%clk 0:01:27.1]} 22. Bxe7 {[%clk 0:02:35.9]}
22... Bxe7 {[%clk 0:01:25.2]} 23. Nxd5 {[%clk 0:02:37]} 23... Qxf3 {[%clk
0:00:52.8]} 24. Nxe7+ {[%clk 0:02:38.1]} 24... Kf8 {[%clk 0:00:54]} 25. Rxf3
{[%clk 0:02:39.8]} 25... Kxe7 {[%clk 0:00:55.4]} 26. Rb7+ {[%clk 0:02:39.5]}
26... Ke6 {[%clk 0:00:56.6]} 27. Rfxf7 {[%clk 0:02:37.6]} 27... Rf8 {[%clk
0:00:51.6]} 28. Rxf8 {[%clk 0:02:32.8]} 28... Rxf8 {[%clk 0:00:51.8]} 29. Rc7
{[%clk 0:02:28]} 29... Kd5 {[%clk 0:00:52.3]} 30. Rc5+ {[%clk 0:02:28.6]} 30...
Ke4 {[%clk 0:00:53.5]} 31. e6 {[%clk 0:02:26.6]} 1-0

[Event "*** Titled Tuesday Blitz"]
[Site "Chess.com"]
[Date "2018.05.01"]
[Round "2"]
[White "Maghalashvili"]
[Black "Hanging_pointer"]
[Result "1-0"]
[WhiteElo "2611"]
[BlackElo "2327"]
[TimeControl "180+2"]
[EndTime "13:18:17 PDT"]
[Termination "Maghalashvili won by resignation"]

1. Nf3 {[%clk 0:03:01.9]} 1... Nf6 {[%clk 0:02:59.3]} 2. g3 {[%clk 0:03:02.9]}
2... b5 {[%clk 0:02:58.4]} 3. Bg2 {[%clk 0:03:01.6]} 3... Bb7 {[%clk 0:02:59.8]}
4. b3 {[%clk 0:03:03.2]} 4... e6 {[%clk 0:02:59.2]} 5. c4 {[%clk 0:03:03.4]}
5... Nc6 {[%clk 0:02:54.9]} 6. O-O {[%clk 0:03:01.5]} 6... bxc4 {[%clk
0:02:53.1]} 7. bxc4 {[%clk 0:03:02.5]} 7... Bb4 {[%clk 0:02:54.4]} 8. Bb2 {[%clk
0:02:52.3]} 8... Bc5 {[%clk 0:02:52.5]} 9. Nc3 {[%clk 0:02:52.1]} 9... Rb8
{[%clk 0:02:51.7]} 10. d4 {[%clk 0:02:50.8]} 10... Nxd4 {[%clk 0:02:42.1]} 11.
Nxd4 {[%clk 0:02:37.5]} 11... Bxg2 {[%clk 0:02:44]} 12. Kxg2 {[%clk 0:02:35.9]}
12... Rxb2 {[%clk 0:02:43.7]} 13. Nb3 {[%clk 0:02:32]} 13... Qa8+ {[%clk
0:01:39.8]} 14. Kg1 {[%clk 0:02:31.5]} 14... Ba3 {[%clk 0:01:39.3]} 15. Na4
{[%clk 0:02:30.4]} 15... Ne4 {[%clk 0:01:40.3]} 16. Nxb2 {[%clk 0:02:11.7]}
16... Bxb2 {[%clk 0:01:42.1]} 17. Rb1 {[%clk 0:02:11.4]} 17... Bf6 {[%clk
0:01:41]} 18. Qd3 {[%clk 0:02:08.1]} 18... Nc3 {[%clk 0:01:39.7]} 19. Nc5 {[%clk
0:01:52.1]} 19... d6 {[%clk 0:01:36]} 20. Na6 {[%clk 0:01:52.3]} 20... Qc8
{[%clk 0:01:35.3]} 21. Rb8 {[%clk 0:01:52.2]} 21... O-O {[%clk 0:01:32.3]} 22.
Rxc8 {[%clk 0:01:52.9]} 22... Rxc8 {[%clk 0:01:34.1]} 23. Nb4 {[%clk 0:01:52.2]}
23... c5 {[%clk 0:01:33.6]} 24. Nc2 {[%clk 0:01:51.5]} 24... d5 {[%clk
0:01:33.5]} 25. cxd5 {[%clk 0:01:44]} 25... exd5 {[%clk 0:01:35.4]} 26. Ne3
{[%clk 0:01:44.6]} 26... c4 {[%clk 0:01:34]} 27. Qf5 {[%clk 0:01:44.2]} 27...
Rc5 {[%clk 0:01:33]} 28. Ng4 {[%clk 0:01:42.6]} 28... Nxe2+ {[%clk 0:01:32]} 29.
Kg2 {[%clk 0:01:43.2]} 29... Bd4 {[%clk 0:01:33.4]} 30. Re1 {[%clk 0:01:41.2]}
30... g6 {[%clk 0:01:32.8]} 31. Nh6+ {[%clk 0:01:41.6]} 31... Kg7 {[%clk
0:01:30.5]} 32. Qxf7+ {[%clk 0:01:41.9]} 32... Kxh6 {[%clk 0:01:30.6]} 33. Rxe2
{[%clk 0:01:43.2]} 33... c3 {[%clk 0:01:30.1]} 34. Qf4+ {[%clk 0:01:43.9]} 34...
g5 {[%clk 0:01:27.4]} 35. Qxd4 {[%clk 0:01:44.8]} 1-0